fUST/lending_fUST_20240722
["ID","MTS","AMOUNT","RATE_DAILY","PERIOD"]
[332859014,1721590241121,-385.06715889,0.00013698,2]
[332859015,1721590241130,-500.0,0.00013698,2]
[332859016,1721590241139,-500.0,0.00013698,2]
[332859017,1721590241149,-500.0,0.00013698,2]
[332859018,1721590241158,-500.0,0.00013698,2]
[332859019,1721590241167,-500.0,0.00013698,2]
[332859020,1721590241177,-500.0,0.00013698,2]
[332859021,1721590241186,-500.0,0.00013698,2]
[332859022,1721590241200,-500.0,0.00013698,2]
[332859023,1721590241210,-491.92462079,0.00013698,2]
[332859024,1721590241221,-157.14943285,0.00013698,2]
[332859025,1721590241231,-500.0,0.00013698,2]
[332859026,1721590241240,-500.0,0.00013698,2]
[332859027,1721590241250,-500.0,0.00013698,2]
[332859028,1721590241260,-500.0,0.00013698,2]
[332859029,1721590241269,-500.0,0.00013698,2]
[332859030,1721590241279,-500.0,0.00013698,2]
[332859031,1721590241289,-500.0,0.00013698,2]
[332859032,1721590241300,-500.0,0.00013698,2]
[332859033,1721590241310,-500.0,0.00013698,2]
[332859034,1721590241320,-500.0,0.00013698,2]
[332859035,1721590241330,-500.0,0.00013698,2]
[332859036,1721590241339,-500.0,0.00013698,2]
[332859037,1721590241349,-500.0,0.00013698,2]
[332859038,1721590241358,-500.0,0.00013698,2]
[332859039,1721590241368,-500.0,0.00013698,2]
[332859040,1721590241378,-500.0,0.00013698,2]
[332859041,1721590241388,-500.0,0.00013698,2]
[332859042,1721590241397,-500.0,0.00013698,2]
[332859043,1721590241407,-500.0,0.00013698,2]
[332859044,1721590241416,-500.0,0.00013698,2]
[332859045,1721590241426,-500.0,0.00013698,2]
[332859046,1721590241436,-500.0,0.00013698,2]
[332859047,1721590241449,-500.0,0.00013698,2]
[332859048,1721590241458,-500.0,0.00013698,2]
[332859049,1721590241468,-500.0,0.00013698,2]
[332859050,1721590241477,-500.0,0.00013698,2]
[332859051,1721590241486,-500.0,0.00013698,2]
[332859052,1721590241495,-500.0,0.00013698,2]
[332859053,1721590241505,-500.0,0.00013698,2]
[332859054,1721590241516,-500.0,0.00013698,2]
[332859055,1721590241525,-500.0,0.00013698,2]
[332859056,1721590241536,-500.0,0.00013698,2]
[332859057,1721590241545,-500.0,0.00013698,2]
[332859058,1721590241554,-500.0,0.00013698,2]
[332859059,1721590241563,-500.0,0.00013698,2]
[332859060,1721590241572,-500.0,0.00013698,2]
[332859061,1721590241582,-500.0,0.00013698,2]
[332859062,1721590241591,-500.0,0.00013698,2]
[332859063,1721590241601,-500.0,0.00013698,2]
[332859064,1721590241610,-500.0,0.00013698,2]
[332859065,1721590241619,-262.78079801,0.00013698,2]
[332859066,1721590241628,-1526.367968,0.00013699,2]
[332859067,1721590241637,-9308.8409744,0.00013699,2]
[332859068,1721590241646,-3000.0,0.00013699,2]
[332859069,1721590241656,-156.381407,0.00013808,2]
[332859070,1721590241665,-230.109342,0.00013808,2]
[332859071,1721590241674,-169.957534,0.00013808,2]
[332859072,1721590241683,-2339.59569693,0.00013808,2]
[332859073,1721590241694,-449.58184146,0.00013972,2]
[332859074,1721590241705,-248.2,0.00013972,2]
[332859075,1721590241715,-500.0,0.00013972,2]
[332859076,1721590241724,-500.0,0.00013972,2]
[332859077,1721590241735,-582.74,0.00013972,2]
[332859078,1721590241744,-500.0,0.00013972,2]
[332859079,1721590241754,-437.57,0.00013972,2]
[332859080,1721590241763,-377.65,0.00013972,2]
[332859081,1721590241772,-238.47779164,0.00013972,2]
[332859082,1721590241782,-326.86,0.00013972,2]
[332859083,1721590241792,-287.8740586,0.00013972,2]
[332859084,1721590241802,-175.72896542,0.00013972,2]
[332859085,1721590241811,-169.957534,0.00014038,2]
[332859086,1721590241822,-500.0,0.00014246,2]
[332859087,1721590241831,-500.0,0.00014246,2]
[332859088,1721590241841,-750.0,0.00014247,2]
[332859089,1721590241851,-701.165131,0.00014247,2]
[332859090,1721590241861,-169.957534,0.00014268,2]
[332859091,1721590241871,-153.0,0.00014278,2]
[332859092,1721590241880,-153.0,0.00014278,2]
[332859093,1721590241889,-153.0,0.00014278,2]
[332859094,1721590241898,-169.957534,0.00014498,2]
[332859095,1721590241908,-614.82719603,0.0001452,2]
[332859096,1721590241919,-173.03,0.0001452,2]
[332859097,1721590241928,-1519.35514429,0.0001469,2]
[332859098,1721590241938,-154.72922386,0.0001469,2]
[332859099,1721590241955,-165.0,0.00014795,2]
[332859100,1721590241969,-153.0,0.00014795,2]
[332859101,1721590241979,-587.6063692,0.00014878,2]
[332859102,1721590241990,-153.0,0.00014959,2]
[332859103,1721590241999,-1408.0,0.00014965,2]
[332859104,1721590242008,-2844.20261952,0.00015,2]
[332859105,1721590242017,-1825.51894106,0.00015,2]
[332859106,1721590242027,-4657.59570218,0.00015,2]
[332859107,1721590242036,-153.0,0.00015068,2]
[332859108,1721590242048,-153.0,0.00015068,2]
[332859109,1721590242057,-4516.75287784,0.0001509,2]
[332859110,1721590242067,-150.112233,0.000151,4]
[332859111,1721590242076,-339.023195,0.00015245,2]
[332859112,1721590242085,-644.61,0.0001529,2]
[332859113,1721590242094,-150.112233,0.000153,5]
[332859114,1721590242103,-2339.59569693,0.00015333,2]
[332859115,1721590242113,-600.0,0.00015336,2]
[332859116,1721590242123,-11433.6596374,0.00015393,2]
[332859117,1721590242132,-22867.3192749,0.00015396,2]
[332859118,1721590242141,-150.112233,0.000154,2]
[332859119,1721590242150,-5984.26505642,0.000154,2]
[332859120,1721590242160,-5984.26505641,0.00015402,2]
[332859121,1721590242169,-5984.26505641,0.00015403,2]
[332859122,1721590242179,-5984.26505641,0.00015405,2]
[332859123,1721590242188,-5984.26505641,0.00015406,2]
[332859124,1721590242202,-233.236532,0.00015406,2]
[332859125,1721590242212,-151.0,0.00015406,2]
[332859126,1721590242222,-151.0,0.00015406,2]
[332859127,1721590242232,-151.0,0.00015406,2]
[332859128,1721590242243,-151.0,0.00015406,2]
[332859129,1721590242254,-88888.0,0.00015406,2]
[332859130,1721590242263,-11433.6596374,0.0001549,2]
[332859131,1721590242272,-966.10767557,0.00015496,2]
[332859132,1721590242282,-15087.72663046,0.00015496,5]
[332859133,1721590242292,-151.0,0.00015496,2]
[332859134,1721590242301,-151.0,0.00015496,2]
[332859135,1721590242311,-278.827756,0.00015496,2]
[332859136,1721590242321,-151.0,0.00015496,2]
[332859137,1721590242330,-151.0,0.00015496,2]
[332859138,1721590242339,-151.0,0.00015496,2]
[332859139,1721590242349,-151.0,0.00015496,2]
[332859140,1721590242359,-151.0,0.00015496,2]
[332859141,1721590242368,-151.0,0.00015496,2]
[332859142,1721590242378,-27594.1157406,0.00015496,2]
[332859143,1721590242403,-129.85461872,0.00015496,2]
[332859171,1721590243481,-199.94485775,0.00013698,2]
[332859172,1721590243491,-500.0,0.00013698,2]
[332859173,1721590243501,-1114.1911693,0.00015406,2]
[332859174,1721590243511,-15412.43249165,0.00015496,2]
[332859175,1721590243611,-255.76839404,0.00015496,2]
[332859192,1721590252564,306.9,0.00010959,2]
[332859193,1721590280624,2214.82,0.00012696,2]
[332859194,1721590280647,2500.0,0.00012696,2]
[332859197,1721590350458,150.5,0.00013482,7]
[332859238,1721591241291,-188.02682589,9.999e-05,2]
[332859239,1721591241313,-154.74467129,9.999e-05,2]
[332859240,1721591241340,-887.31675178,9.999e-05,2]
[332859241,1721591241362,-215.2128624,9.999e-05,2]
[332859242,1721591241384,-155.21915129,9.999e-05,2]
[332859243,1721591241406,-154.74467129,0.0001,2]
[332859244,1721591241433,-293.1268563,0.00010831,2]
[332859245,1721591254146,-254.2690163,0.00010831,2]
[332859246,1721591254175,-250.0,0.00011548,2]
[332859247,1721591254200,-250.0,0.0001158,2]
[332859248,1721591254225,-250.0,0.00011612,2]
[332859249,1721591254246,-250.0,0.00011643,2]
[332859250,1721591254272,-300.0,0.00011674,2]
[332859251,1721591254297,-300.0,0.00011674,2]
[332859252,1721591254326,-250.0,0.00011675,2]
[332859253,1721591254348,-250.0,0.00011707,2]
[332859254,1721591254375,-250.0,0.00011738,2]
[332859255,1721591254400,-250.0,0.0001177,2]
[332859256,1721591254423,-250.0,0.00011802,2]
[332859257,1721591254446,-6467.90223944,0.0001183,2]
[332859260,1721591351240,-567.88989652,9.999e-05,2]
[332859261,1721591351262,-994.2327366,9.999e-05,2]
[332859262,1721591351283,-518.96291688,9.999e-05,2]
[332859263,1721591351308,-887.31675178,9.999e-05,2]
[332859264,1721591351330,-154.71377951,9.999e-05,2]
[332859265,1721591351353,-188.02682589,9.999e-05,2]
[332859266,1721591351375,-300.0,0.0001083,2]
[332859267,1721591351396,-4707.01308214,0.00010831,2]
[332859268,1721591351416,-1625.30319851,0.00010831,2]
[332859269,1721591351437,-2106.31551891,0.00010831,2]
[332859270,1721591351460,-359.4112535,0.00011261,2]
[332859271,1721591351480,-218.09499306,0.0001183,2]
[332859272,1721591351501,-154.71377951,0.0001183,2]
[332859273,1721591351521,-154.71377951,0.0001183,2]
[332859274,1721591351542,-19440.5755278,0.0001183,2]
[332859275,1721591351565,-18432.09776056,0.0001183,2]
[332859276,1721591351587,-250.0,0.00011833,2]
[332859277,1721591351608,-250.0,0.00011865,2]
[332859278,1721591351629,-250.0,0.00011897,2]
[332859279,1721591351650,-250.0,0.00011928,2]
[332859280,1721591351671,-250.0,0.0001196,2]
[332859281,1721591351693,-250.0,0.00011992,2]
[332859282,1721591351715,-250.0,0.00012023,2]
[332859283,1721591351735,-250.0,0.00012055,2]
[332859284,1721591351757,-250.0,0.00012087,2]
[332859285,1721591351778,-250.0,0.00012118,2]
[332859286,1721591351799,-250.0,0.0001215,2]
[332859287,1721591351820,-1914.58732516,0.000129,2]
[332859291,1721591353414,184.41760437,9.999e-05,2]
[332859292,1721591353491,154.71377951,0.0001,2]
[332859293,1721591358526,805.27993341,9.999e-05,2]
[332859294,1721591360176,-1914.58732512,0.00013124,2]
[332859295,1721591386123,154.71377951,9.999e-05,2]
[332859296,1721591386162,848.37789621,9.999e-05,2]
[332859297,1721591389321,1323.60862418,0.00012121,2]
[332859298,1721591389341,406.18397509,0.00012121,2]
[332859299,1721591389365,376.52291964,0.00012121,2]
[332859300,1721591392620,626.00862048,0.00012121,2]
[332859301,1721591393200,1290.19401888,0.00012121,2]
[332859302,1721591393224,4.14619265,0.00012121,2]
[332859303,1721591394641,156.70690817,0.00012121,2]
[332859304,1721591395520,521.12727906,0.00012121,2]
[332859305,1721591396824,188.02682589,0.00012121,2]
[332859308,1721591399719,309.23113979,9.999e-05,2]
[332859309,1721591399975,550.54828447,0.00012121,2]
[332859310,1721591400006,578.21356901,0.00012121,2]
[332859311,1721591400031,416.01916759,0.00012121,2]
[332859312,1721591400261,403.19686744,9.999e-05,2]
[332859313,1721591400904,726.64238482,9.999e-05,2]
[332859314,1721591401030,154.71377951,0.00012121,2]
[332859315,1721591401295,209.61899477,9.999e-05,2]
[332859316,1721591402125,306.79177905,0.00012121,2]
[332859318,1721591406458,150.3731815,0.00012121,2]
[332859319,1721591406480,2398.88279836,0.00012121,2]
[332859320,1721591406504,2363.5302395,0.00012121,2]
[332859357,1721591432359,-305.020973,9.999e-05,2]
[332859358,1721591432370,-726.64238482,9.999e-05,2]
[332859359,1721591432379,-2492.83664218,0.00012121,2]
[332859463,1721591438250,-12034.95266626,0.00012121,2]
[332859465,1721591438260,-168.04952997,0.00012121,2]
[332859466,1721591438271,-365.30452862,0.00012121,2]
[332859468,1721591438284,-4707.01308214,0.00012121,2]
[332859470,1721591438294,-177.43102236,0.00012121,2]
[332859472,1721591438305,-4707.01308214,0.00012121,2]
[332859474,1721591438317,-154.71377951,0.00012121,2]
[332859475,1721591438332,-24900.0,0.00012443,2]
[332859477,1721591438343,-5984.26505642,0.00013382,2]
[332859478,1721591438352,-1235.73553246,0.0001339,2]
[332859480,1721591438362,-5984.26505641,0.00013436,2]
[332859483,1721591438372,-270194.138708,0.00013472,2]
[332859485,1721591438382,-232274.52755375,0.00013482,2]
[332859496,1721591438978,-23000.00023,0.00013482,2]
[332859497,1721591439135,-73653.91201391,0.00013482,2]
[332859499,1721591440496,-223273.49257241,0.00013482,2]
[332859500,1721591440505,-5984.26505641,0.0001349,2]
[332859501,1721591440515,-5984.26505641,0.00013544,2]
[332859502,1721591440524,-5984.26505641,0.00013598,2]
[332859503,1721591440535,-223.39696642,0.00013698,2]
[332859504,1721591440545,-500.0,0.00013698,2]
[332859505,1721591440555,-500.0,0.00013698,2]
[332859506,1721591440565,-505.78855562,0.00013698,2]
[332859507,1721591440575,-512.83003469,0.00013698,2]
[332859508,1721591440584,-578.19,0.00013698,2]
[332859509,1721591440594,-500.0,0.00013698,2]
[332859510,1721591440603,-500.0,0.00013698,2]
[332859511,1721591440613,-500.0,0.00013698,2]
[332859512,1721591440622,-500.0,0.00013698,2]
[332859513,1721591440631,-500.0,0.00013698,2]
[332859514,1721591440640,-565.6,0.00013698,2]
[332859515,1721591440650,-561.68,0.00013698,2]
[332859516,1721591440659,-500.0,0.00013698,2]
[332859517,1721591440669,-500.0,0.00013698,2]
[332859518,1721591440678,-500.0,0.00013698,2]
[332859519,1721591440687,-500.0,0.00013698,2]
[332859520,1721591440696,-500.0,0.00013698,2]
[332859521,1721591440705,-500.0,0.00013698,2]
[332859522,1721591440715,-500.0,0.00013698,2]
[332859523,1721591440724,-500.0,0.00013698,2]
[332859524,1721591440733,-648.14,0.00013698,2]
[332859525,1721591440743,-500.0,0.00013698,2]
[332859526,1721591440752,-500.0,0.00013698,2]
[332859527,1721591440761,-505.89,0.00013698,2]
[332859528,1721591440771,-500.0,0.00013698,2]
[332859529,1721591440781,-500.0,0.00013698,2]
[332859530,1721591440791,-500.0,0.00013698,2]
[332859531,1721591440800,-644.61,0.00013698,2]
[332859532,1721591440810,-500.0,0.00013698,2]
[332859533,1721591440819,-500.0,0.00013698,2]
[332859534,1721591440828,-500.0,0.00013698,2]
[332859535,1721591440838,-500.0,0.00013698,2]
[332859536,1721591440847,-315.2,0.00013698,2]
[332859537,1721591440856,-435.93,0.00013698,2]
[332859538,1721591440865,-500.0,0.00013698,2]
[332859539,1721591440882,-588.81283957,0.00013698,2]
[332859540,1721591440896,-500.0,0.00013698,2]
[332859541,1721591440906,-500.0,0.00013698,2]
[332859542,1721591440916,-500.0,0.00013698,2]
[332859543,1721591440926,-500.0,0.00013698,2]
[332859544,1721591440936,-500.0,0.00013698,2]
[332859545,1721591440947,-352.88022747,0.00013698,2]
[332859546,1721591440957,-500.0,0.00013698,2]
[332859547,1721591440967,-500.0,0.00013698,2]
[332859548,1721591440977,-500.0,0.00013698,2]
[332859549,1721591440987,-500.0,0.00013698,2]
[332859550,1721591440997,-500.0,0.00013698,2]
[332859551,1721591441007,-500.0,0.00013698,2]
[332859552,1721591441017,-500.0,0.00013698,2]
[332859553,1721591441028,-500.0,0.00013698,2]
[332859554,1721591441038,-354.9459246,0.00013698,2]
[332859555,1721591441048,-153.92,0.00013698,2]
[332859556,1721591441057,-502.81409546,0.00013698,2]
[332859557,1721591441067,-500.0,0.00013698,2]
[332859558,1721591441077,-511.22,0.00013698,2]
[332859559,1721591441086,-500.0,0.00013698,2]
[332859560,1721591441096,-500.0,0.00013698,2]
[332859561,1721591441107,-500.0,0.00013698,2]
[332859562,1721591441116,-500.0,0.00013698,2]
[332859563,1721591441126,-500.0,0.00013698,2]
[332859564,1721591441136,-529.69,0.00013698,2]
[332859565,1721591441146,-590.47,0.00013698,2]
[332859566,1721591441156,-500.0,0.00013698,2]
[332859567,1721591441167,-500.0,0.00013698,2]
[332859568,1721591441176,-500.0,0.00013698,2]
[332859569,1721591441187,-500.0,0.00013698,2]
[332859570,1721591441197,-327.41,0.00013698,2]
[332859571,1721591441206,-500.0,0.00013698,2]
[332859572,1721591441216,-500.0,0.00013698,2]
[332859573,1721591441226,-500.0,0.00013698,2]
[332859574,1721591441236,-500.0,0.00013698,2]
[332859575,1721591441246,-604.38,0.00013698,2]
[332859576,1721591441257,-500.0,0.00013698,2]
[332859577,1721591441267,-500.0,0.00013698,2]
[332859578,1721591441277,-500.0,0.00013698,2]
[332859579,1721591441287,-527.61,0.00013698,2]
[332859580,1721591441296,-521.24,0.00013698,2]
[332859581,1721591441309,-500.0,0.00013698,2]
[332859582,1721591441320,-500.0,0.00013698,2]
[332859583,1721591441339,-500.0,0.00013698,2]
[332859584,1721591441350,-500.0,0.00013698,2]
[332859585,1721591441362,-500.0,0.00013698,2]
[332859586,1721591441373,-500.0,0.00013698,2]
[332859587,1721591441383,-500.0,0.00013698,2]
[332859588,1721591441393,-500.0,0.00013698,2]
[332859589,1721591441407,-500.0,0.00013698,2]
[332859590,1721591441418,-500.0,0.00013698,2]
[332859591,1721591441429,-500.0,0.00013698,2]
[332859592,1721591441439,-500.0,0.00013698,2]
[332859593,1721591441450,-500.0,0.00013698,2]
[332859594,1721591441460,-500.0,0.00013698,2]
[332859595,1721591441470,-500.0,0.00013698,2]
[332859596,1721591441479,-500.0,0.00013698,2]
[332859597,1721591441489,-500.0,0.00013698,2]
[332859598,1721591441499,-514.46089773,0.00013698,2]
[332859599,1721591441509,-500.16477689,0.00013698,2]
[332859600,1721591441519,-500.0,0.00013698,2]
[332859601,1721591441530,-500.0,0.00013698,2]
[332859602,1721591441540,-500.0,0.00013698,2]
[332859603,1721591441549,-500.0,0.00013698,2]
[332859604,1721591441559,-500.0,0.00013698,2]
[332859605,1721591441570,-524.27020938,0.00013698,2]
[332859606,1721591441579,-244.8,0.00013698,2]
[332859607,1721591441589,-545.09,0.00013698,2]
[332859608,1721591441600,-288.15609103,0.00013698,2]
[332859609,1721591441610,-500.0,0.00013698,2]
[332859610,1721591441620,-500.0,0.00013698,2]
[332859611,1721591441629,-500.0,0.00013698,2]
[332859612,1721591441640,-500.0,0.00013698,2]
[332859613,1721591441650,-434.1341042,0.00013698,2]
[332859614,1721591441661,-525.49173652,0.00013698,2]
[332859615,1721591441670,-500.0,0.00013698,2]
[332859616,1721591441679,-500.0,0.00013698,2]
[332859617,1721591441690,-500.0,0.00013698,2]
[332859619,1721591441700,-500.0,0.00013698,2]
[332859620,1721591441711,-500.0,0.00013698,2]
[332859622,1721591441725,-500.0,0.00013698,2]
[332859624,1721591441738,-238.36208966,0.00013698,2]
[332859626,1721591441749,-500.0,0.00013698,2]
[332859628,1721591441759,-500.0,0.00013698,2]
[332859630,1721591441772,-500.0,0.00013698,2]
[332859631,1721591441783,-500.0,0.00013698,2]
[332859632,1721591441793,-500.0,0.00013698,2]
[332859634,1721591441805,-500.0,0.00013698,2]
[332859635,1721591441815,-500.0,0.00013698,2]
[332859637,1721591441825,-500.0,0.00013698,2]
[332859639,1721591441836,-500.0,0.00013698,2]
[332859640,1721591441846,-500.0,0.00013698,2]
[332859642,1721591441856,-500.0,0.00013698,2]
[332859643,1721591441867,-500.0,0.00013698,2]
[332859645,1721591441878,-500.0,0.00013698,2]
[332859646,1721591441888,-500.0,0.00013698,2]
[332859647,1721591441900,-500.0,0.00013698,2]
[332859648,1721591441910,-500.0,0.00013698,2]
[332859649,1721591441920,-500.43250489,0.00013698,2]
[332859651,1721591441930,-500.0,0.00013698,2]
[332859652,1721591441940,-384.66,0.00013698,2]
[332859654,1721591441951,-500.0,0.00013698,2]
[332859655,1721591441960,-632.04,0.00013698,2]
[332859656,1721591441970,-516.42,0.00013698,2]
[332859657,1721591441980,-500.0,0.00013698,2]
[332859658,1721591441990,-430.44968673,0.00013698,2]
[332859659,1721591442000,-500.0,0.00013698,2]
[332859660,1721591442010,-500.0,0.00013698,2]
[332859661,1721591442021,-200.9,0.00013698,2]
[332859662,1721591442034,-316.07,0.00013698,2]
[332859663,1721591442044,-500.0,0.00013698,2]
[332859664,1721591442055,-500.0,0.00013698,2]
[332859665,1721591442066,-500.0,0.00013698,2]
[332859666,1721591442077,-288.50329968,0.00013698,2]
[332859667,1721591442088,-500.0,0.00013698,2]
[332859668,1721591442098,-500.0,0.00013698,2]
[332859669,1721591442108,-223.1,0.00013698,2]
[332859670,1721591442118,-500.0,0.00013698,2]
[332859671,1721591442128,-500.0,0.00013698,2]
[332859672,1721591442138,-500.0,0.00013698,2]
[332859673,1721591442147,-500.0,0.00013698,2]
[332859674,1721591442157,-500.0,0.00013698,2]
[332859675,1721591442167,-500.0,0.00013698,2]
[332859676,1721591442177,-500.0,0.00013698,2]
[332859677,1721591442187,-152.01,0.00013698,2]
[332859678,1721591442199,-500.0,0.00013698,2]
[332859679,1721591442210,-417.62,0.00013698,2]
[332859680,1721591442220,-318.39,0.00013698,2]
[332859681,1721591442231,-500.0,0.00013698,2]
[332859682,1721591442241,-181.62960455,0.00013698,2]
[332859683,1721591442251,-500.0,0.00013698,2]
[332859684,1721591442261,-500.0,0.00013698,2]
[332859685,1721591442272,-500.0,0.00013698,2]
[332859686,1721591442283,-500.0,0.00013698,2]
[332859687,1721591442294,-500.0,0.00013698,2]
[332859688,1721591442304,-500.0,0.00013698,2]
[332859689,1721591442314,-500.0,0.00013698,2]
[332859690,1721591442324,-500.0,0.00013698,2]
[332859691,1721591442337,-500.0,0.00013698,2]
[332859692,1721591442347,-375.88,0.00013698,2]
[332859693,1721591442357,-500.0,0.00013698,2]
[332859694,1721591442368,-500.0,0.00013698,2]
[332859695,1721591442378,-500.0,0.00013698,2]
[332859696,1721591442388,-500.0,0.00013698,2]
[332859697,1721591442398,-500.0,0.00013698,2]
[332859698,1721591442409,-500.0,0.00013698,2]
[332859699,1721591442419,-500.0,0.00013698,2]
[332859700,1721591442429,-500.0,0.00013698,2]
[332859701,1721591442440,-627.68,0.00013698,2]
[332859702,1721591442449,-500.0,0.00013698,2]
[332859703,1721591442459,-503.23587098,0.00013698,2]
[332859704,1721591442469,-504.70362065,0.00013698,2]
[332859705,1721591442479,-500.0,0.00013698,2]
[332859706,1721591442488,-556.62,0.00013698,2]
[332859707,1721591442499,-500.0,0.00013698,2]
[332859708,1721591442508,-554.8,0.00013698,2]
[332859709,1721591442518,-500.0,0.00013698,2]
[332859710,1721591442530,-500.0,0.00013698,2]
[332859711,1721591442540,-500.0,0.00013698,2]
[332859712,1721591442550,-500.0,0.00013698,2]
[332859713,1721591442561,-151.0,0.00013698,2]
[332859714,1721591442571,-500.0,0.00013698,2]
[332859715,1721591442581,-151.0,0.00013698,2]
[332859716,1721591442591,-500.0,0.00013698,2]
[332859717,1721591442600,-500.0,0.00013698,2]
[332859718,1721591442609,-500.0,0.00013698,2]
[332859719,1721591442619,-500.0,0.00013698,2]
[332859720,1721591442629,-515.52653776,0.00013698,2]
[332859721,1721591442639,-500.0,0.00013698,2]
[332859722,1721591442650,-500.0,0.00013698,2]
[332859723,1721591442660,-500.0,0.00013698,2]
[332859724,1721591442669,-500.0,0.00013698,2]
[332859725,1721591442679,-500.0,0.00013698,2]
[332859726,1721591442689,-500.0,0.00013698,2]
[332859727,1721591442698,-500.0,0.00013698,2]
[332859728,1721591442708,-500.0,0.00013698,2]
[332859729,1721591442717,-500.0,0.00013698,2]
[332859730,1721591442727,-500.0,0.00013698,2]
[332859731,1721591442737,-500.0,0.00013698,2]
[332859733,1721591442747,-502.05371275,0.00013698,2]
[332859735,1721591442757,-151.0,0.00013698,2]
[332859736,1721591442768,-313.031626,0.00013698,2]
[332859737,1721591442778,-313.031626,0.00013698,2]
[332859738,1721591442788,-163.019664,0.00013698,2]
[332859739,1721591442797,-151.0,0.00013698,2]
[332859740,1721591442807,-163.019664,0.00013698,2]
[332859741,1721591442817,-151.0,0.00013698,2]
[332859743,1721591442828,-151.0,0.00013698,2]
[332859745,1721591442839,-151.0,0.00013698,2]
[332859747,1721591442850,-151.0,0.00013698,2]
[332859749,1721591442860,-151.0,0.00013698,2]
[332859751,1721591442871,-151.0,0.00013698,2]
[332859753,1721591442881,-151.0,0.00013698,2]
[332859755,1721591442891,-151.0,0.00013698,2]
[332859757,1721591442902,-151.0,0.00013698,2]
[332859759,1721591442911,-157.87661,0.00013698,2]
[332859761,1721591442923,-157.87661,0.00013698,2]
[332859764,1721591442933,-152.201305,0.00013698,2]
[332859767,1721591442943,-233.236532,0.00013698,2]
[332859769,1721591442953,-151.0,0.00013698,2]
[332859773,1721591442963,-248.666727,0.00013698,2]
[332859778,1721591442973,-248.666727,0.00013698,2]
[332859781,1721591442982,-184.277006,0.00013698,2]
[332859783,1721591442992,-151.0,0.00013698,2]
[332859785,1721591443002,-151.0,0.00013698,2]
[332859787,1721591443011,-151.0,0.00013698,2]
[332859789,1721591443021,-151.0,0.00013698,2]
[332859791,1721591443032,-181.62474517,0.00013698,2]
[332859793,1721591443043,-162.26745544,0.00013698,2]
[332859794,1721591443053,-500.0,0.00013698,2]
[332859796,1721591443075,-492.99487891,0.00013698,2]
[332859798,1721591443086,-500.0,0.00013698,2]
[332859800,1721591443096,-500.0,0.00013698,2]
[332859803,1721591443106,-500.0,0.00013698,2]
[332859806,1721591443116,-263.70461676,0.00013698,2]
[332859809,1721591443126,-500.0,0.00013698,2]
[332859812,1721591443136,-500.0,0.00013698,2]
[332859814,1721591443147,-500.0,0.00013698,2]
[332859817,1721591443157,-500.0,0.00013698,2]
[332859819,1721591443167,-500.0,0.00013698,2]
[332859821,1721591443177,-500.0,0.00013698,2]
[332859823,1721591443187,-500.0,0.00013698,2]
[332859824,1721591443198,-385.06715889,0.00013698,2]
[332859826,1721591443208,-500.0,0.00013698,2]
[332859827,1721591443218,-500.0,0.00013698,2]
[332859829,1721591443229,-500.0,0.00013698,2]
[332859831,1721591443239,-500.0,0.00013698,2]